bitfinex/quotes_SOLUSD_20240702
["timestamp","ask_amount","ask_price","bid_price","bid_amount"]
[1719946879893,6.5625,153.44,153.42,16.2949]
[1719946880099,6.5625,153.44,153.35,32.6046]
[1719946880100,13.0797,153.44,153.39,22.8172]
[1719946880396,6.5625,153.44,153.42,6.5179]
[1719946880602,6.5625,153.44,153.39,16.298]
[1719946880603,6.5625,153.44,153.41,6.5183]
[1719946880799,6.5625,153.44,153.39,16.298]
[1719946880800,6.5625,153.44,153.42,6.518]
[1719946881016,6.81236016,153.47,153.43,6.5172]
[1719946881215,7.3991735,153.48,153.43,6.5172]
[1719946881414,7.3991735,153.48,153.44,6.5167]
[1719946881712,7.3991735,153.48,153.35,32.6046]
[1719946881713,0.8635735,153.48,153.47,22.8057]
[1719946882421,0.8635735,153.48,153.47,16.2898]
[1719946882605,0.8635735,153.48,153.46,6.5162]
[1719946883299,0.8635735,153.48,153.45,6.5167]
[1719946883693,6.5159,153.47,153.42,6.5176]
[1719946884116,0.8635735,153.48,153.43,6.5173]
[1719946884296,0.8635735,153.48,153.42,6.518]
[1719946884497,6.5162,153.47,153.42,6.518]
[1719946884699,40.5035735,153.48,153.38,16.2987]
[1719946884899,6.5169,153.45,153.4,6.5187]
[1719946885121,20.8635735,153.48,153.41,6.5182]
[1719946885320,6.5168,153.45,153.4,22.8153]
[1719946885915,40.5035735,153.48,153.37,16.3]
[1719946885916,6.518,153.42,153.37,16.3]
[1719946886222,12.6594,153.43,153.38,6.5196]
[1719946886522,6.5181,153.42,153.37,22.82]
[1719946886918,6.1417,153.43,153.37,22.82]
[1719946886919,12.6594,153.43,153.39,6.5192]
[1719946887295,6.1417,153.43,153.4,6.5188]
[1719946887923,6.1417,153.43,153.41,6.5184]
[1719946888115,30.0,153.44,153.43,6.5176]
[1719946888314,0.8635735,153.48,153.43,6.5176]
[1719946888514,6.5167,153.46,153.41,22.8134]
[1719946888828,7.3793735,153.48,153.43,6.5175]
[1719946889202,7.3793735,153.48,153.44,6.5171]
[1719946890516,20.0,153.47,153.44,6.5171]
[1719946892328,20.0,153.47,153.43,22.8112]
[1719946892524,20.0,153.47,153.42,6.5179]
[1719946892717,20.8635735,153.48,153.42,6.5179]
[1719946893228,0.8635735,153.48,153.44,6.517]
[1719946893602,0.8635735,153.48,153.43,22.8109]
[1719946894106,6.5161,153.47,153.43,16.2935]
[1719946894411,20.0,153.46,153.4,16.2965]
[1719946894728,40.5035735,153.48,153.41,6.5181]
[1719946895027,6.5163,153.47,153.42,6.518]
[1719946895230,26.5164,153.46,153.42,6.518]
[1719946895430,6.5164,153.46,153.42,6.518]
[1719946896129,6.5164,153.46,153.41,16.2958]
[1719946896309,6.5168,153.45,153.41,22.8141]
[1719946896510,6.5165,153.46,153.41,22.8141]
[1719946896918,20.8635735,153.48,153.42,6.518]
[1719946897813,6.5166,153.46,153.41,22.8141]
[1719946898039,20.8635735,153.48,153.43,6.5176]
[1719946898712,6.5162,153.47,153.42,6.5179]
[1719946898954,20.0,153.46,153.43,6.5176]
[1719946899109,6.5162,153.47,153.43,6.5176]
[1719946899435,6.5164,153.46,153.42,6.5179]
[1719946899650,6.516,153.47,153.43,6.5175]
[1719946899816,0.8635735,153.48,153.44,6.5168]
[1719946900008,20.8635735,153.48,153.44,6.5168]
[1719946900349,20.8635735,153.48,153.42,6.5178]
[1719946900521,6.5168,153.45,153.4,16.2965]
[1719946900712,6.5164,153.46,153.41,6.5183]
[1719946901234,6.5168,153.45,153.4,16.2965]
[1719946901407,6.5167,153.46,153.41,6.5184]
[1719946902316,6.5169,153.45,153.41,6.5184]
[1719946902752,6.5164,153.46,153.42,6.5179]
[1719946903131,6.5164,153.46,153.41,6.5183]
[1719946903443,6.5168,153.45,153.41,6.5183]
[1719946903816,6.5164,153.46,153.42,6.518]
[1719946904530,6.5164,153.46,153.41,6.5183]
[1719946904729,6.5164,153.46,153.42,6.5178]
[1719946905035,6.516,153.47,153.43,6.5175]
[1719946905234,0.8635735,153.48,153.34,49.4659]
[1719946905235,0.8635735,153.48,153.46,6.5162]
[1719946905542,0.8635735,153.48,153.46,22.8068]
[1719946905920,0.8635735,153.48,153.43,16.2932]
[1719946906237,7.3792735,153.48,153.43,22.8106]
[1719946906829,7.3792735,153.48,153.44,6.5171]
[1719946908036,7.3792735,153.48,153.43,22.8107]
[1719946908337,7.3792735,153.48,153.44,6.5171]
[1719946908844,0.8635735,153.48,153.45,6.5167]
[1719946909225,0.8635735,153.48,153.44,6.517]
[1719946909734,7.3790735,153.48,153.44,6.517]
[1719946910334,7.3790735,153.48,153.43,22.8107]
[1719946910940,6.5159,153.47,153.43,22.8107]
[1719946911939,7.3791735,153.48,153.43,22.8107]
[1719946912522,7.3791735,153.48,153.44,6.5171]
[1719946914140,6.5167,153.45,153.4,22.8149]
[1719946914343,6.5167,153.45,153.41,6.5183]
[1719946914541,45.9363,153.46,153.41,6.5183]
[1719946914542,52.4528,153.46,153.41,6.5183]
[1719946914740,52.4528,153.46,153.42,6.5179]
[1719946914741,20.0,153.45,153.42,6.5179]
[1719946915247,30.0,153.44,153.42,6.5179]
[1719946915553,30.0,153.44,153.41,6.5183]
[1719946916351,30.0,153.44,153.4,16.2964]
[1719946916352,30.0,153.44,153.4,22.8151]
[1719946916725,36.5172,153.44,153.4,22.8151]
[1719946917224,36.5172,153.44,153.4,16.2964]
[1719946917726,6.5188,153.41,153.37,16.2998]
[1719946917927,6.5186,153.41,153.37,16.2998]
[1719946918324,30.0,153.44,153.31,16.4965]
[1719946918325,19.64,153.43,153.33,6.5218]
[1719946918530,19.64,153.43,153.35,6.5209]
[1719946918531,36.519,153.4,153.35,6.5209]
[1719946918734,36.519,153.4,153.36,6.5204]
[1719946918935,30.0,153.4,153.36,6.5204]
[1719946919248,30.0,153.4,153.31,16.4965]
[1719946919429,36.519,153.4,153.35,6.5207]
[1719946919828,36.5192,153.4,153.34,16.3033]
[1719946920148,45.6868,153.4,153.28,15.6177]
[1719946920357,26.1205,153.39,153.31,6.0226]
[1719946920659,26.1205,153.39,153.32,6.5222]
[1719946920660,6.5207,153.36,153.32,6.5222]
[1719946921023,6.5211,153.35,153.3,16.3076]
[1719946921238,6.5207,153.36,153.31,6.5226]
[1719946921492,26.1205,153.39,153.33,6.5218]
[1719946921660,26.1205,153.39,153.34,6.5212]
[1719946921959,6.5198,153.38,153.34,6.5211]
[1719946922163,20.0,153.37,153.33,6.5217]
[1719946922336,26.1205,153.39,153.36,6.5204]
[1719946922537,26.1205,153.39,153.36,22.8208]
[1719946922735,15.6868,153.4,153.36,22.8208]
[1719946923040,15.6868,153.4,153.37,6.5201]
[1719946923626,22.2058,153.4,153.36,16.3004]
[1719946923846,6.5193,153.39,153.35,6.5208]
[1719946924054,6.5193,153.39,153.34,6.5214]
[1719946924257,15.6868,153.4,153.33,16.3039]
[1719946924425,6.5197,153.38,153.34,6.5213]
[1719946925036,6.5197,153.38,153.33,22.8257]
[1719946926260,6.5202,153.37,153.33,22.8257]
[1719946926427,6.5202,153.37,153.33,16.3039]
[1719946926626,6.5219,153.33,153.29,6.5233]
[1719946926854,6.5216,153.34,153.29,6.5233]
[1719946927362,6.5216,153.34,153.29,22.8319]
[1719946927834,6.5216,153.34,153.3,6.523]
[1719946928034,6.521,153.35,153.3,6.523]
[1719946928436,6.5215,153.34,153.3,6.523]
[1719946929033,6.5211,153.35,153.3,6.523]
[1719946929251,6.81016004,153.37,153.3,6.523]
[1719946929457,39.64,153.36,153.26,16.3113]
[1719946929757,35.9429,153.35,153.26,16.3113]
[1719946929951,6.5228,153.31,153.26,22.8358]
[1719946930336,52.181,153.33,153.23,16.3149]
[1719946930658,6.5236,153.29,153.24,6.5256]
[1719946930860,6.5241,153.28,153.23,22.8409]
[1719946931153,6.5866,153.31,153.25,22.8378]
[1719946931154,6.5232,153.3,153.25,22.8378]
[1719946931351,20.0,153.29,153.25,22.8378]
[1719946931563,20.0,153.29,153.26,6.5247]
[1719946931849,20.0,153.29,153.27,6.5243]
[1719946932148,20.0,153.29,153.25,16.3127]
[1719946932149,6.5236,153.29,153.25,16.3127]
[1719946932355,6.5236,153.29,153.21,32.633]
[1719946932356,6.524,153.28,153.24,6.5257]
[1719946933345,6.5237,153.29,153.24,6.5257]
[1719946933652,26.5232,153.3,153.25,6.5252]
[1719946934047,26.5232,153.3,153.26,16.3118]
[1719946934236,6.5236,153.29,153.24,6.5256]
[1719946934747,6.5228,153.31,153.26,6.5244]
[1719946934959,16.236,153.33,153.21,59.393]
[1719946935140,6.5225,153.32,153.27,22.8344]
[1719946935757,6.5228,153.31,153.27,22.8344]
[1719946935961,6.5231,153.3,153.26,6.5247]
[1719946936163,35.876,153.33,153.24,22.8389]
[1719946936338,6.5237,153.29,153.24,22.8389]
[1719946936540,16.3059,153.32,153.25,6.5252]
[1719946936835,16.236,153.33,153.27,6.5244]
[1719946937048,20.0,153.32,153.27,6.5244]
[1719946937254,20.0,153.32,153.26,16.3119]
[1719946937255,6.5227,153.31,153.26,22.8365]
[1719946937757,6.5227,153.31,153.27,6.5244]
[1719946937948,6.5227,153.31,153.26,22.8366]
[1719946938143,6.5234,153.3,153.26,16.3119]
[1719946938462,6.5234,153.3,153.26,22.8366]
[1719946938660,6.5227,153.31,153.27,6.5243]
[1719946939164,26.5224,153.32,153.27,6.5243]
[1719946939461,6.5231,153.3,153.26,22.8366]
[1719946939657,16.236,153.33,153.28,16.3093]
[1719946939855,6.5217,153.34,153.29,6.5234]
[1719946940442,6.521,153.35,153.31,6.5226]
[1719946940642,6.521,153.35,153.3,22.8307]
[1719946941048,22.67431937,153.37,153.27,32.7195]
[1719946941251,6.5221,153.33,153.28,6.5237]
[1719946942142,6.5221,153.33,153.29,6.5234]
[1719946942345,6.5216,153.34,153.29,6.5234]
[1719946942865,6.5216,153.34,153.3,6.5231]
[1719946943166,6.5216,153.34,153.29,16.3086]
[1719946943548,6.5216,153.34,153.29,22.832]
[1719946944278,35.9416,153.36,153.26,16.3113]
[1719946944578,20.0,153.35,153.26,16.3113]
[1719946945077,6.5224,153.32,153.27,6.5243]
[1719946945246,6.5232,153.3,153.25,6.5249]
[1719946945446,6.5236,153.29,153.25,6.5249]
[1719946945981,36.5229,153.31,153.27,6.5244]
[1719946946278,30.0,153.31,153.27,6.5244]
[1719946946775,30.0,153.31,153.28,6.5239]
[1719946947264,30.0,153.31,153.27,22.8351]
[1719946947858,6.5224,153.32,153.27,22.8351]
[1719946948263,6.5214,153.34,153.29,6.5232]
[1719946948565,20.0,153.33,153.29,6.5232]
[1719946949469,13.02109274,153.36,153.29,16.3088]
[1719946949768,20.0,153.35,153.29,16.3088]
[1719946949972,6.5215,153.34,153.3,6.023]
[1719946951171,6.5211,153.35,153.3,6.023]
[1719946951502,6.521,153.35,153.31,22.829]
[1719946951658,6.2247,153.36,153.31,22.829]
[1719946951870,22.3926,153.37,153.32,6.5221]
[1719946952261,6.5217,153.34,153.29,6.5233]
[1719946952459,6.5217,153.34,153.3,16.3074]
[1719946952782,6.5217,153.34,153.3,22.8304]
[1719946952975,6.5206,153.36,153.32,6.5222]
[1719946953153,15.8724,153.37,153.32,6.5222]
[1719946953659,6.521,153.35,153.3,22.8302]
[1719946955082,6.5215,153.34,153.3,22.8302]
[1719946955282,6.5212,153.35,153.3,22.8302]
[1719946955486,15.8724,153.37,153.32,16.3055]
[1719946955670,20.0,153.36,153.32,16.3055]
[1719946955974,6.521,153.35,153.3,6.5229]
[1719946956152,6.5214,153.34,153.3,6.5229]
[1719946956980,6.5232,153.3,153.26,22.836]
[1719946957150,6.5234,153.3,153.26,16.3114]
[1719946957350,6.5234,153.3,153.26,22.8362]
[1719946958561,6.5234,153.3,153.26,16.3114]
[1719946958872,6.5234,153.3,153.26,22.8362]
[1719946959058,6.5224,153.32,153.26,16.3114]
[1719946959267,6.5224,153.32,153.27,6.5242]
[1719946960177,6.2356,153.33,153.24,32.6266]
[1719946960358,54.77138069,153.36,153.3,6.523]
[1719946960359,6.5211,153.35,153.3,6.523]
[1719946960567,26.5215,153.34,153.3,22.8306]
[1719946960860,6.5215,153.34,153.3,22.8306]
[1719946961082,6.5215,153.34,153.3,16.3076]
[1719946961588,6.5219,153.33,153.28,6.5239]
[1719946961789,6.5223,153.32,153.28,6.5239]
[1719946961972,6.522,153.33,153.28,6.5239]
[1719946962582,6.5215,153.34,153.29,16.3087]
[1719946962774,6.5215,153.34,153.21,26.76]
[1719946962775,6.5246,153.27,153.22,6.5262]
[1719946963080,6.5246,153.27,153.23,16.3146]
[1719946963276,35.9461,153.32,153.22,6.5265]
[1719946963500,6.5245,153.27,153.22,6.5265]
[1719946963785,6.5245,153.27,153.23,6.5261]
[1719946964462,6.5245,153.27,153.22,22.8425]
[1719946964757,6.5256,153.25,153.2,6.5273]
[1719946964966,6.5258,153.24,153.19,22.8465]
[1719946965190,51.3264,153.28,153.16,16.3227]
[1719946965479,51.3264,153.28,153.16,22.8516]
[1719946965480,35.9526,153.26,153.16,22.8516]
[1719946965691,6.527,153.21,153.16,22.8516]
[1719946966076,6.527,153.21,153.17,6.5286]
[1719946966888,6.5266,153.22,153.17,6.5286]
[1719946967185,36.5261,153.23,153.18,22.8483]
[1719946967361,36.5261,153.23,153.19,6.5277]
[1719946967362,30.0,153.23,153.19,6.5277]
[1719946967556,36.5261,153.23,153.19,6.5277]
[1719946968061,36.5261,153.23,153.18,22.8483]
[1719946968261,6.5261,153.23,153.18,22.8483]
[1719946968668,6.5267,153.22,153.18,16.3202]
[1719946968866,6.5262,153.23,153.18,22.8484]
[1719946969073,39.64,153.25,153.15,22.8528]
[1719946969394,6.5275,153.2,153.15,22.8528]
[1719946970478,6.5271,153.21,153.16,6.529]
[1719946970689,6.5274,153.2,153.16,6.529]
[1719946970889,6.5274,153.2,153.15,22.8528]
[1719946971197,19.64,153.22,153.15,16.3234]
[1719946971361,6.5277,153.2,153.15,22.8529]
[1719946971975,6.5279,153.19,153.15,22.8529]
[1719946972285,6.5279,153.19,153.15,16.3234]
[1719946972794,55.465,153.21,153.12,16.3262]
[1719946973091,55.465,153.21,153.09,16.2154]
[1719946973092,78.21150278,153.21,153.09,16.2154]
[1719946973384,78.21150278,153.21,153.11,6.5312]
[1719946973385,6.5295,153.15,153.11,6.5312]
[1719946973558,6.5292,153.16,153.11,6.5312]
[1719946973760,30.0,153.18,153.11,6.5312]
[1719946973761,49.64,153.18,153.11,6.5312]
[1719946973993,20.0,153.17,153.11,6.5312]
[1719946974363,36.5285,153.18,153.13,6.5303]
[1719946974564,6.5289,153.17,153.13,16.3253]
[1719946975258,6.5292,153.16,153.1,16.3286]
[1719946975471,6.5288,153.17,153.13,6.5303]
[1719946975687,6.5288,153.17,153.12,6.5306]
[1719946975991,74.52930278,153.21,153.12,6.5306]
[1719946976181,39.64,153.2,153.12,6.5306]
[1719946976488,20.0,153.2,153.14,6.5296]
[1719946976663,6.5282,153.18,153.12,16.3267]
[1719946976866,6.2535,153.16,153.09,16.3298]
[1719946977070,6.5304,153.13,153.09,16.3298]
[1719946977560,6.5309,153.12,153.07,6.5329]
[1719946977789,6.5309,153.12,153.06,16.3329]
[1719946977790,6.5305,153.13,153.08,6.5323]
[1719946978114,15.5726,153.12,153.03,16.336]
[1719946978319,15.5726,153.12,153.0,16.339]
[1719946978320,35.9686,153.11,153.0,16.339]
[1719946978490,16.3329,153.07,152.99,6.5362]
[1719946978689,6.5335,153.06,153.01,6.5354]
[1719946979625,6.5335,153.06,153.02,6.535]
[1719946980005,35.9719,153.08,152.99,16.3404]
[1719946980293,16.3339,153.06,152.96,16.3439]
[1719946980512,39.64,153.07,152.98,16.3412]
[1719946980513,19.64,153.07,152.98,16.3412]
[1719946980719,20.0,153.06,152.98,16.3412]
[1719946980928,15.1073,153.05,152.98,16.3412]
[1719946981416,6.5081,153.02,152.94,16.3462]
[1719946981715,6.5081,153.02,152.95,7.4012735]
[1719946981716,6.5362,153.0,152.95,7.4012735]
[1719946982015,13.0432,153.02,152.97,6.5372]
[1719946982203,13.0432,153.02,152.96,6.5375]
[1719946982403,13.0432,153.02,152.95,0.8635735]
[1719946982404,13.0432,153.02,152.97,6.5371]
[1719946982717,6.5081,153.02,152.95,0.8635735]
[1719946982950,20.0,153.01,152.95,0.8635735]
[1719946983093,6.5371,152.98,152.95,0.8635735]
[1719946983291,34.8023,152.98,152.95,0.8635735]
[1719946983600,26.5372,152.97,152.95,0.8635735]
[1719946983821,20.0,152.97,152.95,0.8635735]
[1719946986335,26.5372,152.97,152.95,0.8635735]
[1719946986633,6.5376,152.96,152.95,0.8635735]
[1719946986926,36.5376,152.96,152.95,0.8635735]
[1719946987703,30.0,152.96,152.95,0.8635735]
[1719946988222,36.5376,152.96,152.95,0.8635735]
[1719946988522,56.5376,152.96,152.95,0.8635735]
[1719946989114,50.0,152.96,152.95,0.8635735]
[1719946991649,56.5376,152.96,152.95,0.8635735]
[1719946995002,56.5376,152.96,152.88,6.5409]
[1719946995003,6.5394,152.92,152.88,6.5409]
[1719946995636,30.0,152.91,152.88,6.5409]
[1719946995933,30.0,152.91,152.89,6.5405]
[1719946996132,30.0,152.91,152.87,22.8945]
[1719946996925,36.5398,152.91,152.87,16.3532]
[1719946997133,36.5399,152.91,152.84,37.8398]
[1719946997426,36.5399,152.91,152.86,6.5418]
[1719946997808,36.5399,152.91,152.87,6.5414]
[1719946998342,36.5399,152.91,152.86,22.8963]
[1719946998636,6.542,152.86,152.81,6.5439]
[1719946998819,30.0,152.85,152.81,6.5439]
[1719946999024,36.5425,152.85,152.8,16.3608]
[1719946999227,36.5425,152.85,152.8,22.9051]
[1719946999436,6.5432,152.83,152.78,6.545]
[1719946999616,30.0,152.85,152.8,6.5444]
[1719946999812,30.0,152.82,152.8,6.5444]
[1719947000037,30.0,152.82,152.79,23.7700735]
[1719947000217,30.0,152.82,152.79,17.2253735]
[1719947000542,30.0,152.82,152.79,23.7701735]
[1719947000915,30.0,152.82,152.79,0.8635735]
[1719947001320,6.5442,152.81,152.79,0.8635735]
[1719947001557,30.0,152.8,152.79,0.8635735]
[1719947002011,30.0,152.8,152.79,7.4084735]
[1719947002445,30.0,152.8,152.79,0.8635735]
[1719947004721,36.5445,152.8,152.79,0.8635735]
[1719947005850,56.5445,152.8,152.79,0.8635735]
[1719947007052,56.5445,152.8,152.75,6.5466]
[1719947007223,6.5449,152.79,152.75,6.5466]
[1719947007422,30.0,152.78,152.75,6.5466]
[1719947007643,30.0,152.78,152.74,6.5469]
[1719947007853,30.0,152.78,152.75,6.5463]
[1719947008241,30.0,152.78,152.76,6.5458]
[1719947008435,30.0,152.78,152.77,6.5457]
[1719947008835,30.0,152.78,152.75,22.9125]
[1719947009240,30.0,152.78,152.76,6.5458]
[1719947009461,30.0,152.78,152.75,16.3662]
[1719947010066,30.0,152.78,152.76,6.5461]
[1719947010938,30.0,152.78,152.77,6.5457]
[1719947011139,32.7011,152.9,152.77,6.5457]
[1719947011140,6.082,152.92,152.85,6.542]
[1719947011347,30.0,152.86,152.85,6.542]
[1719947011735,6.082,152.92,152.8,26.98]
[1719947011736,6.082,152.92,152.86,6.5417]
[1719947012265,6.082,152.92,152.85,16.3554]
[1719947012266,14.5194918,152.92,152.85,16.3554]
[1719947012458,6.5402,152.9,152.85,22.8977]
[1719947013362,6.5397,152.92,152.88,6.541]
[1719947013667,6.539,152.93,152.89,6.5406]
[1719947013847,8.4374918,152.96,152.89,16.3507]
[1719947014044,6.5381,152.95,152.9,6.5398]
[1719947014652,8.4374918,152.96,152.91,6.5395]
[1719947014851,6.538,152.95,152.91,6.5395]
[1719947015063,6.538,152.95,152.89,22.8909]
[1719947015357,6.538,152.95,152.9,6.5401]
[1719947016164,8.4374918,152.96,152.91,6.5396]
[1719947016370,6.5381,152.95,152.9,6.5402]
[1719947016745,6.5387,152.94,152.89,22.8912]
[1719947017250,6.539,152.93,152.89,22.8912]
[1719947017446,6.5386,152.94,152.89,22.8912]
[1719947017759,6.5382,152.95,152.9,6.54]
[1719947017963,30.0,152.91,152.9,6.54]
[1719947018844,30.0,152.91,152.89,22.8913]
[1719947019547,30.0,152.91,152.86,56.0623]
[1719947019751,30.0,152.91,152.86,22.5406]
[1719947020149,30.0,152.91,152.88,6.5407]
[1719947020546,30.0,152.91,152.89,6.5405]
[1719947021371,30.0,152.91,152.87,22.8947]
[1719947021562,36.5401,152.91,152.87,16.3533]
[1719947022246,36.5401,152.91,152.87,22.8946]
[1719947022470,36.5401,152.91,152.87,16.3533]
[1719947022842,36.5401,152.91,152.87,22.8946]
[1719947023148,30.0,152.91,152.87,16.3533]
[1719947023355,30.0,152.91,152.89,6.5403]
[1719947023668,30.0,152.91,152.9,6.5402]
[1719947025461,30.0,152.91,152.89,22.8918]
[1719947025762,30.0,152.91,152.88,6.5408]
[1719947027447,30.0,152.91,152.82,15.643]
[1719947027678,36.2875,152.91,152.81,6.0993]
[1719947027975,6.5407,152.89,152.84,6.5425]
[1719947028162,30.0,152.88,152.84,6.5425]
[1719947028363,30.0,152.88,152.85,6.5421]
[1719947028550,30.0,152.88,152.8,32.7204]
[1719947028754,30.0,152.88,152.82,26.98]
[1719947029372,30.0,152.88,152.8,32.7204]
[1719947029675,30.0,152.88,152.84,6.5427]
[1719947029867,6.5415,152.87,152.83,22.9007]
[1719947030075,30.0,152.85,152.8,16.3608]
[1719947030868,30.0,152.85,152.82,16.3588]
[1719947031552,30.0,152.85,152.84,6.5427]
[1719947031754,30.0,152.85,152.82,16.3588]
[1719947031973,30.0,152.85,152.84,6.5427]
[1719947033249,30.0,152.85,152.84,39.2566]
[1719947033749,6.5398,152.91,152.87,6.5414]
[1719947033974,30.0,152.88,152.86,22.8965]
[1719947034154,30.0,152.88,152.86,16.3547]
[1719947034476,30.0,152.88,152.84,6.5424]
[1719947034682,30.0,152.88,152.85,6.5423]
[1719947034973,6.5407,152.89,152.83,16.3573]
[1719947034974,30.0,152.87,152.83,16.3573]
[1719947035171,30.0,152.87,152.85,6.5423]
[1719947035469,30.0,152.87,152.83,16.3573]
[1719947035470,36.5416,152.87,152.83,16.3573]
[1719947035658,30.0,152.87,152.83,16.3573]
[1719947035856,30.0,152.87,152.84,6.5425]
[1719947036174,30.0,152.87,152.83,6.5431]
[1719947036366,30.0,152.87,152.84,6.5427]
[1719947036749,30.0,152.87,152.85,6.542]
[1719947037160,30.0,152.87,152.86,6.5419]
[1719947037966,15.7644,152.94,152.89,6.5404]
[1719947038155,30.0,152.9,152.88,22.893]
[1719947038554,30.0,152.9,152.89,6.5406]
[1719947039355,6.5376,152.96,152.92,6.5393]
[1719947039554,30.0,152.93,152.91,16.3493]
[1719947039769,30.0,152.93,152.89,6.5403]
[1719947039976,30.0,152.93,152.88,22.8932]
[1719947040152,6.5397,152.92,152.88,16.3522]
[1719947040472,36.5398,152.91,152.85,49.0658]
[1719947040669,6.5403,152.9,152.85,16.3555]
[1719947040876,30.0,152.91,152.85,16.3555]
[1719947040877,30.0,152.91,152.87,6.5411]
[1719947041076,30.0,152.91,152.85,16.3555]
[1719947041249,52.1469,152.91,152.85,22.8975]
[1719947041655,52.1469,152.91,152.82,15.2932]
[1719947041656,45.6445,152.91,152.87,22.8947]
[1719947041878,45.6445,152.91,152.87,16.3533]
[1719947042178,52.1844,152.91,152.86,6.5418]
[1719947042380,45.6445,152.91,152.88,6.541]
[1719947042676,45.6445,152.91,152.89,6.5406]
[1719947043154,45.6445,152.91,152.81,74.9932]
[1719947043354,52.1844,152.91,152.82,20.0]
[1719947044371,52.1844,152.91,152.87,6.5414]
[1719947044682,45.6445,152.91,152.87,22.8946]
[1719947044975,45.6445,152.91,152.84,16.3565]
[1719947045185,6.5413,152.88,152.84,16.3565]
[1719947045364,20.0,152.9,152.84,16.3565]
[1719947045566,6.5412,152.88,152.84,16.3565]
[1719947045766,6.0466,152.89,152.81,16.3594]
[1719947046065,6.5424,152.85,152.81,16.3594]
[1719947046274,6.5424,152.85,152.81,22.9033]
[1719947046460,15.6986,152.85,152.81,22.9033]
[1719947046884,22.2411,152.85,152.81,22.9033]
[1719947047085,22.2411,152.85,152.81,16.3594]
[1719947047380,22.2411,152.85,152.77,16.364]
[1719947047381,15.6986,152.85,152.77,16.364]
[1719947047573,6.5432,152.83,152.78,6.545]
[1719947047760,6.5437,152.82,152.77,22.9096]
[1719947048082,6.5433,152.83,152.78,6.5452]
[1719947048284,6.5436,152.82,152.77,22.9096]
[1719947048472,6.5443,152.81,152.77,16.364]
[1719947048663,6.4492,152.82,152.77,16.364]
[1719947048857,12.993,152.82,152.78,6.5452]
[1719947049164,6.4492,152.82,152.79,16.3617]
[1719947049360,6.4492,152.82,152.76,16.3651]
[1719947049571,20.0,152.81,152.73,29.615441]
[1719947049757,6.5449,152.8,152.75,6.5465]
[1719947050183,6.5449,152.8,152.76,6.5461]
[1719947050881,26.5441,152.81,152.76,6.5461]
[1719947051094,6.5445,152.8,152.75,22.9124]
[1719947051271,6.5445,152.8,152.76,6.5461]
[1719947051969,26.5442,152.81,152.76,6.5461]
[1719947052169,15.23708425,152.84,152.79,16.362]
[1719947052368,15.6986,152.85,152.81,6.544]
[1719947052563,6.5431,152.84,152.79,16.362]
[1719947052786,6.5433,152.83,152.79,16.362]
[1719947053011,15.6986,152.85,152.78,6.5452]
[1719947053198,6.5433,152.83,152.78,6.5452]
[1719947053395,15.6986,152.85,152.73,72.964641]
[1719947053697,8.4374918,152.88,152.77,15.6756]
[1719947053995,8.4374918,152.88,152.84,22.8987]
[1719947054204,8.4374918,152.88,152.86,16.3544]
[1719947054506,22.4188,152.89,152.84,6.5426]